bitfinex/quotes_ETHUSD_20250903
["timestamp","ask_amount","ask_price","bid_price","bid_amount"]
[1756938020537,1.22740001,4479.6,4479.5,11.350392]
[1756938020538,0.75900001,4479.6,4479.5,11.350392]
[1756938020743,0.29980001,4479.6,4479.5,11.350392]
[1756938020951,0.75900001,4479.6,4479.5,11.350392]
[1756938021660,1.22740001,4479.6,4479.5,11.350392]
[1756938022034,0.75900001,4479.6,4479.5,7.596392]
[1756938022268,1e-08,4479.6,4479.5,11.350392]
[1756938022772,0.75900001,4479.6,4479.5,11.350392]
[1756938025472,0.75900001,4479.6,4479.5,9.117]
[1756938025473,1.22740001,4479.6,4479.5,9.117]
[1756938025673,1.22740001,4479.6,4479.5,0.001]
[1756938025973,6.46532714,4479.6,4479.5,3.754]
[1756938026274,6.45974218,4479.6,4479.5,3.754]
[1756938026436,4.22740001,4479.6,4479.5,3.754]
[1756938026638,0.29980001,4479.6,4479.5,3.754]
[1756938026875,1e-08,4479.6,4479.5,6.274292]
[1756938027069,1e-08,4479.6,4479.5,6.386292]
[1756938027967,1e-08,4479.6,4479.5,6.884192]
[1756938028272,1e-08,4479.6,4479.5,6.098392]
[1756938029273,0.29980001,4479.6,4479.5,6.098392]
[1756938029468,0.29980001,4479.6,4479.5,8.145392]
[1756938029674,1.22740001,4479.6,4479.5,3.754]
[1756938030247,1e-08,4479.6,4479.5,6.298092]
[1756938030441,1e-08,4479.6,4479.5,6.864492]
[1756938030648,1e-08,4479.6,4479.5,6.098392]
[1756938030975,0.31510001,4479.6,4479.5,6.098392]
[1756938031343,1e-08,4479.6,4479.5,6.098392]
[1756938032358,0.31510001,4479.6,4479.5,6.098392]
[1756938032554,1e-08,4479.6,4479.5,6.864492]
[1756938033173,1e-08,4479.6,4479.5,6.410092]
[1756938033681,0.31510001,4479.6,4479.5,11.898392]
[1756938034680,1e-08,4479.6,4479.5,11.898392]
[1756938034864,1e-08,4479.6,4479.5,12.210092]
[1756938036572,1e-08,4479.6,4479.5,12.664492]
[1756938036955,1e-08,4479.6,4479.5,13.118392]
[1756938037161,1e-08,4479.6,4479.5,20.07852402]
[1756938037764,1e-08,4479.6,4479.5,15.66907858]
[1756938038100,0.31510001,4479.6,4479.5,14.22547858]
[1756938038297,1e-08,4479.6,4479.5,14.53717858]
[1756938038794,0.31510001,4479.6,4479.5,8.145392]
[1756938039097,0.31510001,4479.6,4479.5,11.898392]
[1756938039596,1.27720001,4479.6,4479.5,0.001]
[1756938039894,0.78940001,4479.6,4479.5,3.754]
[1756938042602,1.27720001,4479.6,4479.5,3.754]
[1756938043200,1.27720001,4479.6,4479.5,0.001]
[1756938043511,1.38920001,4479.6,4479.5,3.754]
[1756938044069,0.31510001,4479.6,4479.5,3.754]
[1756938044691,0.78940001,4479.6,4479.5,3.754]
[1756938047802,0.31510001,4479.6,4479.5,5.986392]
[1756938048720,0.31510001,4479.6,4479.5,3.754]
[1756938049728,0.31510001,4479.6,4479.5,0.001]
[1756938049928,3.51512714,4479.6,4479.5,3.753]
[1756938050127,3.50954218,4479.6,4479.5,3.753]
[1756938050331,3.96364219,4479.6,4479.5,3.753]
[1756938050828,1.73130002,4479.6,4479.5,3.753]
[1756938051032,1.24350002,4479.6,4479.5,3.753]
[1756938051218,0.88120002,4479.6,4479.5,3.753]
[1756938052012,0.56610002,4479.6,4479.5,3.753]
[1756938052325,1e-08,4479.6,4479.5,4.2074]
[1756938052529,0.31510001,4479.6,4479.5,3.753]
[1756938053733,0.78940001,4479.6,4479.5,3.753]
[1756938053929,0.31510001,4479.6,4479.5,3.753]
[1756938054135,3.50954218,4479.6,4479.5,3.753]
[1756938054324,6.50954218,4479.6,4479.5,3.753]
[1756938056113,6.02174218,4479.6,4479.5,3.753]
[1756938056318,5.54744218,4479.6,4479.5,3.753]
[1756938056517,6.02174218,4479.6,4479.5,3.753]
[1756938059029,5.54744218,4479.6,4479.5,3.753]
[1756938059338,6.02174218,4479.6,4479.5,3.753]
[1756938060118,3.67126034,4479.6,4479.5,3.753]
[1756938060320,5.90360251,4479.6,4479.5,3.753]
[1756938060709,3.67126034,4479.6,4479.5,3.753]
[1756938061040,6.21950251,4479.6,4479.5,3.753]
[1756938061541,3.67126034,4479.6,4479.5,3.753]
[1756938062209,0.67126034,4479.6,4479.5,4.5213]
[1756938062418,1e-08,4479.6,4479.5,4.9755]
[1756938062719,1e-08,4479.6,4479.5,7.705442]
[1756938062921,1e-08,4479.6,4479.5,7.817442]
[1756938063146,1e-08,4479.6,4479.5,13.617442]
[1756938063335,1e-08,4479.6,4479.5,9.865442]
[1756938063535,1e-08,4479.6,4479.5,10.4333]
[1756938063856,1e-08,4479.6,4479.5,7.319892]
[1756938066083,1e-08,4479.6,4479.5,3.567892]
[1756938066555,1e-08,4479.6,4479.5,7.319892]
[1756938067536,1e-08,4479.6,4479.5,3.567892]
[1756938067746,1e-08,4479.6,4479.5,8.35719656]
[1756938067959,1e-08,4479.6,4479.5,9.14919656]
[1756938068150,1e-08,4479.6,4479.5,9.37279656]
[1756938068545,1e-08,4479.6,4479.5,15.17279656]
[1756938070148,1e-08,4479.6,4479.5,14.94919656]
[1756938075188,1e-08,4479.6,4479.5,17.94919656]
[1756938076482,1e-08,4479.6,4479.5,18.11959277]
[1756938078616,1e-08,4479.6,4479.5,14.36759277]
[1756938078902,1e-08,4479.6,4479.5,17.66439277]
[1756938079503,1e-08,4479.6,4479.5,13.74299656]
[1756938079662,1e-08,4479.6,4479.5,17.94819656]
[1756938083676,1e-08,4479.6,4479.5,23.31119656]
[1756938085103,1e-08,4479.6,4479.5,23.47621183]
[1756938087012,0.31590001,4479.6,4479.5,18.33769656]
[1756938087232,0.76780001,4479.6,4479.5,13.508392]
[1756938087533,0.31590001,4479.6,4479.5,18.050392]
[1756938087734,0.31590001,4479.6,4479.5,17.258392]
[1756938088516,0.31590001,4479.6,4479.5,18.050392]
[1756938088709,0.31590001,4479.6,4479.5,14.300392]
[1756938088915,0.31590001,4479.6,4479.5,18.050392]
[1756938089137,0.31590001,4479.6,4479.5,12.250392]
[1756938090002,1e-08,4479.6,4479.5,12.250392]
[1756938090200,1e-08,4479.6,4479.5,12.553692]
[1756938090603,0.29140001,4479.6,4479.5,12.250392]
[1756938090802,0.29140001,4479.6,4479.5,8.500392]
[1756938090803,0.72550001,4479.6,4479.5,8.500392]
[1756938091008,0.72550001,4479.6,4479.5,12.250392]
[1756938091535,0.29140001,4479.6,4479.5,8.500392]
[1756938091737,0.72550001,4479.6,4479.5,8.500392]
[1756938091923,0.29140001,4479.6,4479.5,12.250392]
[1756938092123,1e-08,4479.6,4479.5,12.250392]
[1756938092328,1e-08,4479.6,4479.5,7.708392]
[1756938092329,0.72550001,4479.6,4479.5,7.708392]
[1756938092554,0.72550001,4479.6,4479.5,11.458392]
[1756938092922,0.72550001,4479.6,4479.5,17.258392]
[1756938093153,0.29140001,4479.6,4479.5,17.258392]
[1756938094257,1.22300001,4479.6,4479.5,13.508392]
[1756938094460,0.72550001,4479.6,4479.5,17.258392]
[1756938095464,0.72550001,4479.6,4479.5,11.458392]
[1756938095633,1.22300001,4479.6,4479.5,11.458392]
[1756938097124,1.22300001,4479.6,4479.5,0.001]
[1756938097344,3.57292714,4479.6,4479.5,3.596]
[1756938097566,4.23857247,4479.6,4479.5,3.596]
[1756938098686,4.23857247,4479.6,4479.5,0.001]
[1756938098995,4.23857247,4479.6,4479.5,3.751]
[1756938099490,8.64943328,4479.6,4479.5,3.751]
[1756938101102,11.64943328,4479.6,4479.5,0.001]
[1756938101397,2.23259136,4479.1,4479.0,0.001]
[1756938101703,9.64345217,4479.1,4479.0,0.001]
[1756938101990,10.97845217,4479.1,4479.0,0.001]
[1756938102880,11.64986273,4479.1,4479.0,0.001]
[1756938103790,16.06072354,4479.1,4479.0,0.001]
[1756938105405,2.23279076,4478.7,4478.6,0.001]
[1756938105592,6.64923653,4478.7,4478.6,0.001]
[1756938105902,10.97865157,4478.7,4478.6,0.001]
[1756938112010,11.2838819,4478.7,4478.6,0.001]
[1756938112379,15.0338819,4478.7,4478.6,0.001]
[1756938113197,14.72865157,4478.7,4478.6,0.001]
[1756938113882,10.04705157,4478.7,4478.6,0.001]
[1756938114585,10.48115157,4478.7,4478.6,0.001]
[1756938117414,5.34479076,4478.7,4478.6,0.001]
[1756938117627,9.75565157,4478.7,4478.6,0.7657]
[1756938117796,9.75565157,4478.7,4478.6,1.2125]
[1756938118313,9.75565157,4478.7,4478.6,0.001]
[1756938118784,9.75565157,4478.7,4478.6,0.3043]
[1756938118983,9.75565157,4478.7,4478.6,1.2125]
[1756938120100,9.75565157,4478.7,4478.6,0.3043]
[1756938120915,9.75565157,4478.7,4478.6,4.0543]
[1756938121284,10.05935157,4478.7,4478.6,3.751]
[1756938121681,10.05935157,4478.7,4478.6,0.001]
[1756938121919,10.05935157,4478.7,4478.6,3.751]
[1756938122838,10.05935157,4478.7,4478.6,0.001]
[1756938123137,10.05935157,4478.7,4478.6,3.751]
[1756938123320,9.75565157,4478.7,4478.6,3.751]
[1756938124132,9.75565157,4478.7,4478.6,4.0456]
[1756938124726,10.05935157,4478.7,4478.6,3.751]
[1756938124904,10.05935157,4478.7,4478.6,0.001]
[1756938125101,10.98725157,4478.7,4478.6,0.001]
[1756938125306,11.2924819,4478.7,4478.6,0.001]
[1756938125707,10.05935157,4478.7,4478.6,0.001]
[1756938126210,9.75565157,4478.7,4478.6,0.2956]
[1756938126433,9.75565157,4478.7,4478.6,0.001]
[1756938126735,7.52286081,4478.7,4478.6,0.7954]
[1756938126938,7.52286081,4478.7,4478.6,1.2287]
[1756938127240,9.75565157,4478.7,4478.6,1.2287]
[1756938127538,7.52286081,4478.7,4478.6,1.2287]
[1756938128106,9.75565157,4478.7,4478.6,1.2287]
[1756938130736,9.75565157,4478.7,4478.6,0.001]
[1756938131614,10.05935157,4478.7,4478.6,0.001]
[1756938132257,10.98725157,4478.7,4478.6,0.001]
[1756938132549,10.51235157,4478.7,4478.6,0.001]
[1756938134441,10.05935157,4478.7,4478.6,0.001]
[1756938135644,10.51235157,4478.7,4478.6,0.001]
[1756938135852,10.05935157,4478.7,4478.6,0.001]
[1756938139857,9.75565157,4478.7,4478.6,0.001]
[1756938140532,5.34479076,4478.7,4478.6,0.7954]
[1756938140743,5.34479076,4478.7,4478.6,1.2287]
[1756938141526,3.112,4478.7,4478.6,1.2287]
[1756938142660,3.112,4478.7,4478.6,0.001]
[1756938142661,9.75565157,4478.7,4478.6,0.001]
[1756938142862,10.05935157,4478.7,4478.6,3.75]
[1756938143465,9.75565157,4478.7,4478.6,3.75]
[1756938143861,10.05935157,4478.7,4478.6,3.75]
[1756938144071,9.75565157,4478.7,4478.6,3.75]
[1756938147172,5.34479076,4478.7,4478.6,4.0446]
[1756938147373,3.112,4478.7,4478.6,4.9777]
[1756938147675,5.34479076,4478.7,4478.6,4.9777]
[1756938148381,5.34479076,4478.7,4478.6,3.75]
[1756938148542,5.34479076,4478.7,4478.6,4.0446]
[1756938148743,5.34479076,4478.7,4478.6,4.9777]
[1756938149480,5.34479076,4478.7,4478.6,1.2287]
[1756938149773,5.34479076,4478.7,4478.6,4.0436]
[1756938150573,5.34479076,4478.7,4478.6,0.2956]
[1756938150870,5.34479076,4478.7,4478.6,3.749]
[1756938151176,5.65079076,4478.7,4478.6,3.749]
[1756938152597,5.65079076,4478.7,4478.6,0.001]
[1756938152949,6.75982109,4478.7,4478.6,0.001]
[1756938153442,5.97959076,4478.7,4478.6,0.001]
[1756938153642,5.23279076,4478.7,4478.6,0.001]
[1756938153880,5.23279076,4478.7,4478.6,0.7964]
[1756938154070,5.23279076,4478.7,4478.6,1.2477]
[1756938154744,5.23279076,4478.7,4478.6,0.7964]
[1756938155171,5.23279076,4478.7,4478.6,1.2477]
[1756938155573,5.23279076,4478.7,4478.6,0.7964]
[1756938157061,5.23279076,4478.7,4478.6,0.3018]
[1756938159284,5.23279076,4478.7,4478.6,0.7964]
[1756938159455,5.23279076,4478.7,4478.6,0.3018]
[1756938159655,5.23279076,4478.7,4478.6,0.7964]
[1756938159985,5.23279076,4478.7,4478.6,4.5444]
[1756938160790,5.23279076,4478.7,4478.6,4.9957]
[1756938161187,3.0,4478.7,4478.6,4.9957]
[1756938162290,0.67147818,4478.8,4478.6,4.9957]
[1756938162489,2.90421909,4478.8,4478.7,5.9596]
[1756938162972,0.78347818,4478.8,4478.7,6.2604]
[1756938163300,0.78347818,4478.8,4478.7,6.7117]
[1756938163870,0.78347818,4478.8,4478.7,1.717]
[1756938164200,3.01621909,4478.8,4478.7,3.419]
[1756938164400,3.01621909,4478.8,4478.7,3.7198]
[1756938165802,3.01621909,4478.8,4478.7,3.419]
[1756938166803,3.01621909,4478.8,4478.6,0.001]
[1756938166804,2.23279076,4478.7,4478.6,0.001]
[1756938166984,5.23279076,4478.7,4478.6,0.001]
[1756938167304,6.45459076,4478.7,4478.6,0.001]
[1756938170922,5.97959076,4478.7,4478.6,0.001]
[1756938171818,10.50682109,4478.7,4478.6,0.001]
[1756938174626,11.29882109,4478.7,4478.6,0.001]
[1756938174993,10.99359076,4478.7,4478.6,0.001]
[1756938175733,6.02504006,4478.2,4478.1,0.001]
[1756938176024,15.06562266,4478.2,4478.1,0.001]
[1756938176232,16.40178478,4478.2,4478.1,0.001]
[1756938176394,16.51378478,4478.2,4478.1,0.001]
[1756938177943,16.03878478,4478.2,4478.1,0.001]
[1756938178229,16.51378478,4478.2,4478.1,0.001]
[1756938180798,16.81901511,4478.2,4478.1,0.001]
[1756938181910,16.51378478,4478.2,4478.1,0.001]
[1756938182401,16.81901511,4478.2,4478.1,0.001]
[1756938183017,15.90321511,4478.2,4478.1,0.001]
[1756938183309,15.59798478,4478.2,4478.1,0.001]
[1756938183509,16.06338478,4478.2,4478.1,0.001]
[1756938184738,16.84631511,4478.2,4478.1,0.001]
[1756938185233,6.02518966,4477.9,4477.8,1e-08]
[1756938185432,9.88418966,4477.9,4477.8,1e-08]
[1756938185934,10.19738966,4477.9,4477.8,1e-08]
[1756938186353,9.88418966,4477.9,4477.8,1e-08]
[1756938186524,9.09218966,4477.9,4477.8,0.76940001]
[1756938186918,9.09218966,4477.9,4477.8,0.29540001]
[1756938187442,9.09218966,4477.9,4477.8,1e-08]
[1756938188350,9.09218966,4477.9,4477.8,0.29540001]
[1756938189311,9.09218966,4477.9,4477.8,1e-08]
[1756938189517,9.40538966,4477.9,4477.8,1e-08]
[1756938190618,10.50261999,4477.9,4477.8,1e-08]
[1756938191623,10.96801999,4477.9,4477.8,1e-08]
[1756938192051,10.96801999,4477.9,4477.3,0.001]
[1756938192052,0.792,4477.7,4477.3,0.001]
[1756938192353,5.23363859,4477.0,4476.4,0.001]
[1756938192666,14.69942119,4477.0,4476.4,0.001]
[1756938192967,14.78899371,4477.0,4476.4,0.001]
[1756938193559,14.78899371,4477.0,4476.5,0.9275]
[1756938193725,14.47579371,4477.0,4476.5,0.9275]
[1756938194425,14.47579371,4477.0,4476.9,0.2964]
[1756938195164,10.72879371,4477.0,4476.9,1.2239]
[1756938195364,14.47579371,4477.0,4476.9,1.2239]
[1756938196832,14.47579371,4477.0,4476.9,0.001]
[1756938197557,14.47579371,4477.0,4476.9,0.2964]
[1756938198675,14.78899371,4477.0,4476.9,0.001]
[1756938199174,14.47579371,4477.0,4476.9,0.001]
[1756938199381,14.47579371,4477.0,4476.9,0.2964]
[1756938200658,14.47579371,4477.0,4476.9,0.7704]
[1756938201077,14.47579371,4477.0,4476.9,0.2964]
[1756938201390,14.78899371,4477.0,4476.9,0.001]
[1756938201752,14.47579371,4477.0,4476.9,0.001]
[1756938202682,14.78899371,4477.0,4476.9,0.001]
[1756938203090,14.47579371,4477.0,4476.9,0.001]
[1756938204191,14.47579371,4477.0,4476.9,0.2964]
[1756938204972,14.47579371,4477.0,4476.9,0.001]
[1756938205289,15.09422404,4477.0,4476.9,0.001]
[1756938207395,14.78899371,4477.0,4476.9,0.001]
[1756938207798,14.47579371,4477.0,4476.9,0.2964]
[1756938208370,14.47579371,4477.0,4476.9,0.001]
[1756938212670,14.47579371,4477.0,4476.9,0.774]
[1756938212873,14.47579371,4477.0,4476.9,1.2434]
[1756938214969,14.76339371,4477.0,4476.9,0.001]
[1756938215169,15.06862404,4477.0,4476.9,0.001]
[1756938215784,14.78102404,4477.0,4476.9,0.001]
[1756938216995,15.06862404,4477.0,4476.9,0.001]
[1756938218599,15.86062404,4477.0,4476.9,0.001]
[1756938218787,16.29492404,4477.0,4476.9,0.001]
[1756938219188,23.31492404,4477.0,4476.8,1e-08]
[1756938219394,7.23450377,4476.9,4476.8,1e-08]
[1756938219693,14.24891881,4476.9,4476.8,1e-08]
[1756938219896,14.53651881,4476.9,4476.8,1e-08]
[1756938220281,2.23398789,4476.3,4476.0,0.001]
[1756938220487,14.27457049,4476.3,4476.0,0.001]
[1756938220801,14.67417049,4476.3,4476.0,0.001]
[1756938221108,14.76375606,4476.3,4476.0,0.001]
[1756938221771,9.18257346,4476.3,4476.2,1.2434]
[1756938223608,13.60053986,4476.3,4476.2,1.2434]
[1756938232936,2.43557346,4476.3,4476.2,1.2434]
[1756938236623,0.20158557,4476.3,4476.2,1.36804]
[1756938236839,0.112,4476.3,4476.2,1.36804]
[1756938237034,0.67164204,4476.5,4476.2,1.36804]
[1756938237243,0.67164204,4476.5,4476.3,1.4669125]
[1756938237530,0.112,4476.4,4476.3,1.4669125]
[1756938237831,0.112,4476.4,4476.3,1.7746125]
[1756938239034,0.112,4476.6,4476.3,1.7746125]
[1756938239334,0.112,4476.6,4476.4,1.34823305]
[1756938239829,0.112,4476.6,4476.5,0.3077]
[1756938240031,0.67164204,4476.7,4476.5,1.2287]
[1756938240233,0.67164204,4476.7,4476.6,0.921]
[1756938240533,0.67164204,4476.7,4476.6,1.0852233]
[1756938240721,0.67164204,4476.7,4476.6,1.3920233]
[1756938241736,0.67164204,4476.7,4476.6,0.7762]
[1756938241944,2.23398789,4476.3,4476.2,0.001]
[1756938242223,2.34598789,4476.3,4476.2,0.001]
[1756938242434,2.34598789,4476.3,4476.2,0.3078]
[1756938243936,3.0176961,4476.3,4476.2,0.3078]
[1756938244549,3.3193961,4476.3,4476.2,0.001]
[1756938244720,3.0176961,4476.3,4476.2,0.001]
[1756938245222,3.3193961,4476.3,4476.2,0.001]
[1756938245415,4.26838106,4476.3,4476.2,0.001]
[1756938245718,7.26838106,4476.3,4476.2,0.001]
[1756938246050,7.2627961,4476.3,4476.2,0.001]
[1756938246627,6.3193961,4476.3,4476.2,0.001]
[1756938247033,6.3213961,4476.3,4476.2,0.001]
[1756938248850,6.7940961,4476.3,4476.2,0.001]
[1756938249526,7.2647961,4476.3,4476.2,0.001]
[1756938251029,11.31502643,4476.3,4476.2,0.001]
[1756938256560,10.84432643,4476.3,4476.2,0.001]
[1756938259158,10.5390961,4476.3,4476.2,0.001]
[1756938261264,11.0097961,4476.3,4476.2,0.001]
[1756938261481,10.5390961,4476.3,4476.2,0.001]
[1756938264879,9.7646961,4476.3,4476.2,1.2288]
[1756938265085,6.0196961,4476.3,4476.2,1.2288]
[1756938265254,6.0196961,4476.3,4476.2,0.7772]
[1756938265449,6.0196961,4476.3,4476.2,0.3078]
[1756938266946,6.3213961,4476.3,4476.2,0.001]
[1756938267584,6.62662643,4476.3,4476.2,0.001]
[1756938268085,7.09932643,4476.3,4476.2,0.001]
[1756938273314,7.09932643,4476.3,4476.2,0.0258]
[1756938273509,6.62662643,4476.3,4476.2,0.0258]
[1756938273716,6.0196961,4476.3,4476.2,1.2402]
[1756938274682,6.0196961,4476.3,4476.2,0.3351]
[1756938274878,6.0196961,4476.3,4476.2,0.0258]
[1756938275109,6.0196961,4476.3,4476.2,0.3351]
[1756938275315,6.0196961,4476.3,4476.2,0.0258]
[1756938279138,10.7328625,4476.3,4476.2,0.0258]
[1756938279331,6.62012643,4476.3,4476.2,0.0258]
[1756938281035,6.32492643,4476.3,4476.2,0.0258]
[1756938282039,6.62012643,4476.3,4476.2,0.0258]
[1756938282830,6.32492643,4476.3,4476.2,0.0258]
[1756938283345,6.62012643,4476.3,4476.2,0.0258]
[1756938283548,11.92282933,4476.3,4476.2,0.0258]
[1756938288058,11.62762933,4476.3,4476.2,0.0258]
[1756938288954,11.322399,4476.3,4476.2,0.3351]
[1756938289335,3.0196961,4476.3,4476.2,1.2402]
[1756938289527,6.0196961,4476.3,4476.2,1.2402]
[1756938290769,3.0196961,4476.3,4476.2,1.2402]
[1756938290937,3.0196961,4476.3,4476.2,1.36452]
[1756938291845,3.0196961,4476.3,4476.2,1.2402]
[1756938292069,0.78570821,4476.3,4476.2,1.2402]
[1756938292232,3.0196961,4476.3,4476.2,1.2402]
[1756938292559,6.0196961,4476.3,4476.2,1.2402]
[1756938293733,3.78570821,4476.3,4476.2,1.2402]
[1756938293959,3.78570821,4476.3,4476.2,1.36452]
[1756938294764,0.67370821,4476.3,4476.2,1.36452]
[1756938294931,0.002,4476.3,4476.2,1.36452]
[1756938296962,0.002,4476.3,4476.2,2.5151]
[1756938297163,0.002,4476.3,4476.2,2.9582]
[1756938297164,0.114,4476.3,4476.2,2.9582]
[1756938299672,0.78568716,4476.3,4476.2,2.9582]
[1756938301776,3.01967505,4476.3,4476.2,2.9582]
[1756938302079,0.78568716,4476.3,4476.2,6.7002]
[1756938302673,0.78568716,4476.3,4476.2,2.9582]
[1756938302846,0.78568716,4476.3,4476.2,6.7002]
[1756938303051,0.78568716,4476.3,4476.2,7.37052]
[1756938303362,0.78568716,4476.3,4476.2,3.62852]
[1756938303554,0.78568716,4476.3,4476.2,7.37052]
[1756938304943,0.67368716,4476.3,4476.2,7.37052]
[1756938305456,0.67368716,4476.3,4476.2,6.92742]
[1756938305650,0.67368716,4476.3,4476.2,6.7168]
[1756938307978,0.67368716,4476.3,4476.2,5.7951]
[1756938308555,0.67368716,4476.3,4476.2,6.7159]
[1756938311403,0.67368716,4476.3,4476.2,8.94993779]
[1756938311691,0.67368716,4476.3,4476.2,6.7159]
[1756938315267,0.67368716,4476.3,4476.2,6.2562]
[1756938315466,0.67368716,4476.3,4476.2,5.7941]
[1756938316988,0.67368716,4476.3,4476.2,1.7438]
[1756938317180,0.67368716,4476.3,4476.2,5.4848]
[1756938317381,0.67368716,4476.3,4476.2,5.7994]
[1756938320177,0.67368716,4476.3,4476.2,1.7438]
[1756938320496,7.13477505,4476.3,4476.2,0.0258]
[1756938320659,7.44000538,4476.3,4476.2,0.0258]
[1756938336312,6.96890538,4476.3,4476.2,0.0258]
[1756938337312,6.50770538,4476.3,4476.2,0.0258]
[1756938337711,9.75967505,4476.3,4476.2,1.2188]
[1756938337918,6.01967505,4476.3,4476.2,1.2188]
[1756938339814,6.01967505,4476.3,4476.2,0.0258]
[1756938343431,6.01967505,4476.3,4476.2,0.3249]
[1756938343608,6.01967505,4476.3,4476.2,0.778]
[1756938343807,6.01967505,4476.3,4476.2,1.2188]
[1756938345512,10.4374889,4476.3,4476.2,1.2188]
[1756938345709,10.4374889,4476.3,4476.2,0.778]
[1756938346427,10.7250889,4476.3,4476.2,0.0258]
[1756938348329,10.4374889,4476.3,4476.2,0.0258]
[1756938348659,10.4374889,4476.3,4476.2,0.3249]
[1756938350056,10.7250889,4476.3,4476.2,0.0258]
[1756938350256,10.4374889,4476.3,4476.2,0.3249]
[1756938350755,10.4374889,4476.3,4476.2,0.778]
[1756938352461,10.4374889,4476.3,4476.2,1.2188]
[1756938353662,10.4374889,4476.3,4476.2,0.778]
[1756938354958,10.4374889,4476.3,4476.2,0.3249]
[1756938356962,10.4374889,4476.3,4476.2,0.0258]
[1756938357666,10.4374889,4476.3,4476.2,1.2188]
[1756938357867,10.4374889,4476.3,4476.2,0.778]
[1756938359468,10.4374889,4476.3,4476.2,0.3249]
[1756938362088,5.90767505,4476.3,4476.2,1.2443]
[1756938363260,9.96127505,4476.3,4476.2,0.0258]
[1756938363478,0.792,4475.7,4474.4,0.4555]
[1756938363688,2.23423747,4475.8,4473.9,0.4555]
[1756938363689,9.65250065,4474.9,4473.9,0.4555]
[1756938363996,9.65250065,4474.9,4473.8,0.025]
[1756938363997,14.80333098,4474.9,4473.8,0.025]
[1756938364370,15.73853098,4474.9,4473.8,0.025]
[1756938365065,14.45483098,4474.9,4474.1,0.4555]
[1756938365264,13.70610065,4474.9,4474.3,0.4639]
[1756938365988,14.14960065,4474.9,4474.3,0.4639]
[1756938367153,11.14960065,4474.9,4474.3,0.4639]
[1756938367347,14.14960065,4474.9,4474.3,0.4639]
[1756938368467,13.70610065,4474.9,4474.3,0.4639]
[1756938369181,13.70610065,4474.9,4473.8,0.025]
[1756938369182,15.43330065,4474.9,4473.8,0.4889]
[1756938369482,15.73853098,4474.9,4473.8,0.4889]
[1756938369785,15.73853098,4474.9,4473.8,0.9444]
[1756938371179,15.73853098,4474.9,4473.8,0.4805]
[1756938371366,15.73853098,4474.9,4474.0,0.4639]
[1756938371367,15.24683098,4474.9,4474.0,0.4639]
[1756938371765,15.24683098,4474.9,4474.0,0.9194]
[1756938372394,15.35883098,4474.9,4474.0,0.9194]
[1756938372878,14.91533098,4474.9,4474.3,0.4555]
[1756938373081,14.91533098,4474.9,4474.4,0.4639]
[1756938373380,14.61010065,4474.9,4474.4,0.4639]
[1756938373547,14.61010065,4474.9,4474.3,0.4555]
[1756938374896,14.61010065,4474.9,4474.3,0.9194]
[1756938376653,14.61010065,4474.9,4474.3,0.4555]
[1756938376855,5.3466868,4474.9,4474.8,1.2369]
[1756938377051,13.50250065,4474.9,4474.8,1.2369]
[1756938377600,13.50250065,4474.9,4474.8,0.3175]
[1756938377956,13.50250065,4474.9,4474.8,0.025]
[1756938378999,13.50250065,4474.9,4474.8,0.026]
[1756938379505,13.50250065,4474.9,4474.8,0.3185]
[1756938380370,13.50250065,4474.9,4474.8,1.2379]
[1756938380761,13.50250065,4474.9,4474.8,0.774]
[1756938381268,13.50250065,4474.9,4474.8,0.3185]
[1756938381473,13.50250065,4474.9,4474.8,0.026]
[1756938382211,13.81810065,4474.9,4474.8,0.026]
[1756938385082,13.50250065,4474.9,4474.8,0.026]
[1756938386081,13.81810065,4474.9,4474.8,0.026]
[1756938387781,13.50250065,4474.9,4474.8,0.026]
[1756938387978,13.81810065,4474.9,4474.8,0.026]
[1756938388177,13.50250065,4474.9,4474.8,0.3185]
[1756938388783,14.12333098,4474.9,4474.8,0.026]
[1756938389093,19.9631145,4474.9,4474.8,1e-08]
[1756938389393,2.23493652,4474.4,4474.3,0.001]
[1756938389583,13.81356566,4474.4,4474.3,0.001]
[1756938389779,14.5882807,4474.4,4474.3,0.001]
[1756938389982,14.1235807,4474.4,4474.3,0.001]
[1756938390796,9.70576685,4474.4,4474.3,0.001]
[1756938393179,10.17046685,4474.4,4474.3,0.001]
[1756938393575,13.13156685,4474.4,4474.3,0.001]
[1756938394799,10.99716685,4474.4,4474.3,0.001]
[1756938394965,15.51165037,4474.4,4474.3,0.001]
[1756938395596,15.97635037,4474.4,4474.3,0.001]
[1756938395991,11.55853652,4474.4,4474.3,0.001]
[1756938396703,10.80393652,4474.4,4474.3,0.001]
[1756938397072,11.88583652,4474.4,4474.3,0.001]
[1756938397274,13.10586685,4474.4,4474.3,0.001]
[1756938397603,13.10586685,4474.4,4473.4,0.001]
[1756938397604,2.23538616,4473.5,4473.4,0.001]
[1756938397902,13.50320001,4473.5,4473.4,0.001]
[1756938398078,13.50320001,4473.5,4473.4,0.2904]
[1756938398277,13.97160001,4473.5,4473.4,0.2904]
[1756938398787,17.88053034,4473.5,4473.4,0.001]
[1756938399101,17.0759317,4473.5,4473.4,0.001]
[1756938400078,17.5406317,4473.5,4473.4,0.001]
[1756938400603,17.5406317,4473.5,4471.8,1e-08]
[1756938400604,2.23598595,4472.3,4472.2,0.4684]
[1756938400790,13.3917998,4472.3,4472.2,0.4684]
[1756938400989,13.3917998,4472.3,4472.2,0.7578]
[1756938401191,13.8601998,4472.3,4472.2,1.2221]
[1756938403706,13.8601998,4472.3,4471.8,0.46840001]
[1756938403707,2.23618596,4471.9,4471.8,0.46840001]
[1756938403911,10.39199981,4471.9,4471.8,1e-08]
[1756938404598,13.39199981,4471.9,4471.8,1e-08]
[1756938405629,8.97418596,4471.9,4471.8,1e-08]
[1756938406510,8.97418596,4471.9,4471.8,0.28940001]